fUST/lending_fUST_20251229
["ID","MTS","AMOUNT","RATE_DAILY","PERIOD"]
[400008552,1767016239274,-168.0,0.00016093,2]
[400008553,1767016239283,-168.0,0.00016114,2]
[400008554,1767016239293,-533.88981491,0.00016327,2]
[400008555,1767016239302,-168.0,0.00016389,2]
[400008556,1767016239311,-168.0,0.00016396,2]
[400008557,1767016239321,-287.3472354,0.0001643,2]
[400008558,1767016239331,-181.53386345,0.00016559,2]
[400008559,1767016239340,-840.94539291,0.00016834,7]
[400008560,1767016239349,-553.64373807,0.00016875,2]
[400008561,1767016239359,-501.1454694,0.00017,2]
[400008562,1767016239369,-720.0,0.00017018,2]
[400008563,1767016239379,-309.75195436,0.0001722,2]
[400008564,1767016239390,-500.0,0.00017316,2]
[400008565,1767016239400,-1246.46168827,0.00017318,2]
[400008566,1767016239409,-231.1080142,0.00017322,2]
[400008567,1767016239419,-151.0,0.000174,2]
[400008568,1767016239431,-574.12855637,0.00017423,2]
[400008569,1767016239441,-821.0,0.00017489,2]
[400008570,1767016239451,-500.0,0.00017799,2]
[400008571,1767016239461,-500.0,0.00017799,2]
[400008572,1767016239470,-572.22674,0.00017799,2]
[400008573,1767016239480,-5146.0,0.000178,2]
[400008574,1767016239489,-183705.03011663,0.000178,3]
[400008575,1767016239666,-3447.68302848,0.000178,3]
[400008576,1767016239679,-7220.95029685,0.000178,3]
[400008751,1767016246517,-416.0,0.00015532,2]
[400008752,1767016246527,-18076.16483037,0.000178,3]
[400008753,1767016246538,-151.0,0.000178,2]
[400008754,1767016246548,-151.0,0.000178,2]
[400008755,1767016246558,-595.37131296,0.00017971,2]
[400008756,1767016246568,-501.63207536,0.00018,2]
[400008757,1767016246577,-9761.11743826,0.00018,2]
[400008758,1767016246618,-8736.94420632,0.00018,2]
[400008759,1767016246629,-1963.09317678,0.00018,2]
[400008760,1767016246642,-579.57895456,0.00018,2]
[400008761,1767016246653,-400.0,0.00018,2]
[400008762,1767016246664,-754.83808742,0.00018,2]
[400008763,1767016246676,-605.6197518,0.00018,2]
[400008764,1767016528532,167.19,0.0001,2]
[400008766,1767016573779,200.0,0.00028767,120]
[400008767,1767016575380,200.0,0.00028767,120]
[400008768,1767016575451,6772.35,0.00028767,120]
[400008769,1767016576914,200.0,0.00028767,120]
[400008771,1767016757896,-500.0,0.00013273,2]
[400008772,1767016757919,-500.0,0.00013273,2]
[400008773,1767016757951,-500.0,0.00013273,2]
[400008774,1767016757971,-222.37188756,0.00013403,2]
[400008775,1767016757992,-300.0,0.00013534,2]
[400008776,1767016758013,-500.0,0.00013535,2]
[400008777,1767016758035,-442.9268409,0.00013535,2]
[400008778,1767016758056,-399.43119452,0.00013535,2]
[400008779,1767016758080,-500.0,0.00013535,2]
[400008780,1767016758102,-1235.27007702,0.00013536,2]
[400008781,1767016758194,-1041.4651161,0.00013536,2]
[400008782,1767016802971,216.17684848,0.00013535,2]
[400008783,1767016802994,83.82315152,0.00013535,2]
[400008786,1767016947829,-300.0,0.00013535,2]
[400008787,1767016947860,-300.0,0.00013536,2]
[400008788,1767016947890,-300.0,0.00013536,2]
[400008789,1767016947924,-300.0,0.00013536,2]
[400008790,1767016947954,-300.0,0.00013536,2]
[400008791,1767016947984,-300.0,0.00013536,2]
[400008792,1767016948014,-300.0,0.00013536,2]
[400008793,1767016948045,-300.0,0.00013536,2]
[400008794,1767016948080,-300.0,0.00013536,2]
[400008795,1767016948112,-300.0,0.00013536,2]
[400008796,1767016948145,-300.0,0.00013536,2]
[400008797,1767016948174,-58.0,0.00013536,2]
[400008798,1767017213315,292.0,0.00028767,120]
[400008823,1767017432504,-500.0,0.00013273,2]
[400008824,1767017432513,-55.60473655,0.00013273,2]
[400008845,1767017438538,-186.00351659,0.00013273,2]
[400008846,1767017438549,-500.0,0.00013273,2]
[400008847,1767017438559,-608.0,0.00013273,2]
[400008848,1767017438569,-217.92444981,0.00013338,2]
[400008849,1767017438579,-300.0,0.00013697,2]
[400008850,1767017438590,-500.0,0.00013698,2]
[400008851,1767017438600,-500.0,0.00013698,2]
[400008852,1767017438610,-500.0,0.00013698,2]
[400008853,1767017438621,-500.0,0.00013698,2]
[400008854,1767017438632,-572.22674,0.00013698,2]
[400008855,1767017438642,-500.0,0.00013698,2]
[400008856,1767017438652,-29.1796372,0.00013698,2]
[400008857,1767017438664,-3611.23752173,0.00013698,2]
[400008858,1767017438674,-460.425667,0.00013699,2]
[400008859,1767017438684,-500.0,0.00013699,2]
[400008860,1767017438694,-500.0,0.00013699,2]
[400008861,1767017438703,-500.0,0.00013699,2]
[400008862,1767017438714,-500.0,0.00013699,2]
[400008863,1767017438724,-624.39387403,0.00013699,2]
[400008864,1767017438734,-500.0,0.00013699,2]
[400008865,1767017438745,-500.0,0.00013699,2]
[400008866,1767017438755,-500.0,0.00013699,2]
[400008867,1767017438766,-500.0,0.00013699,2]
[400008868,1767017438776,-500.0,0.00013699,2]
[400008869,1767017438786,-500.0,0.00013699,2]
[400008870,1767017438797,-500.0,0.00013699,2]
[400008871,1767017438807,-500.0,0.00013699,2]
[400008872,1767017438817,-500.0,0.00013699,2]
[400008873,1767017438829,-500.0,0.00013699,2]
[400008874,1767017438839,-500.0,0.00013699,2]
[400008875,1767017438848,-406.00793884,0.00013821,2]
[400008876,1767017438859,-600.0,0.00013972,2]
[400008877,1767017438869,-516.04709835,0.00014635,2]
[400008878,1767017438879,-461.67526834,0.0001464,2]
[400008879,1767017438890,-500.0,0.00014647,2]
[400008880,1767017438899,-178.41353487,0.00014647,2]
[400008881,1767017438910,-500.0,0.00014647,2]
[400008882,1767017438920,-500.0,0.00014647,2]
[400008883,1767017438931,-500.0,0.00014647,2]
[400008884,1767017438941,-500.0,0.00014647,2]
[400008885,1767017438955,-164.12615393,0.00014647,2]
[400008886,1767017438965,-500.0,0.00014647,2]
[400008887,1767017438975,-500.0,0.00014647,2]
[400008888,1767017438985,-500.0,0.00014647,2]
[400008889,1767017438996,-500.0,0.00014647,2]
[400008890,1767017439006,-500.0,0.00014647,2]
[400008891,1767017439017,-500.0,0.00014647,2]
[400008892,1767017439027,-500.0,0.00014647,2]
[400008893,1767017439038,-264.23884612,0.00014647,2]
[400008894,1767017439048,-300.0,0.00014647,2]
[400008895,1767017439059,-66697.59519579,0.00014648,2]
[400008896,1767017439072,-1505.45206466,0.00014648,2]
[400008897,1767017439087,-7347.69610067,0.00014648,2]
[400008898,1767017439103,-6054.09965251,0.00014648,2]
[400008920,1767017440691,-1007.557096,0.00014648,2]
[400008946,1767017440925,-195.55780506,0.00014648,2]
[400009287,1767017446255,-2629.13930231,0.00014648,2]
[400009289,1767017446265,-6874.06204905,0.00014656,2]
[400009291,1767017446275,-2942.0948559,0.00014756,2]
[400009296,1767017446295,-168.0,0.00014858,2]
[400009299,1767017446308,-208.0,0.0001501,2]
[400009301,1767017446319,-168.0,0.00015103,2]
[400009303,1767017446333,-168.0,0.00015162,2]
[400009305,1767017446344,-478.75725327,0.00015188,2]
[400009307,1767017446355,-168.0,0.00015277,2]
[400009309,1767017446366,-1172.839,0.00015322,2]
[400009311,1767017446378,-627.0,0.00015322,2]
[400009313,1767017446388,-257.15085078,0.00015338,2]
[400009315,1767017446399,-720.0,0.00015369,2]
[400009317,1767017446410,-168.0,0.00015407,2]
[400009319,1767017446420,-298.695,0.00015552,2]
[400009321,1767017446431,-297.439,0.00015552,2]
[400009323,1767017446444,-286.82883131,0.00015626,2]
[400009325,1767017446454,-496.47127164,0.00015736,2]
[400009327,1767017446463,-250.98793431,0.00015753,2]
[400009330,1767017446473,-1424.85829041,0.00016042,2]
[400009332,1767017446483,-514.84070869,0.00016284,2]
[400009334,1767017446493,-327.80437864,0.00016445,2]
[400009336,1767017446503,-533.88981491,0.00016832,2]
[400009338,1767017446513,-696.72262856,0.00016834,7]
[400009340,1767017446522,-354.62205018,0.00016834,7]
[400009342,1767017446532,-260.42435811,0.00016834,7]
[400009343,1767017446542,-864.0,0.00016906,2]
[400009344,1767017446551,-181.53386345,0.00017012,2]
[400009345,1767017446560,-231.1080142,0.00017013,2]
[400009346,1767017446570,-6874.06204899,0.00017305,2]
[400009347,1767017446579,-296.37725174,0.00017338,2]
[400009348,1767017446588,-553.64373807,0.0001738,2]
[400009349,1767017446599,-231.1080142,0.00017649,2]
[400009350,1767017446608,-151.0,0.000177,2]
[400009351,1767017446617,-500.0,0.00017799,2]
[400009352,1767017446627,-500.0,0.00017799,2]
[400009353,1767017446636,-500.0,0.00017799,2]
[400009354,1767017446645,-500.0,0.00017799,2]
[400009355,1767017446654,-340.00291443,0.00017799,2]
[400009357,1767017446663,-52319.96018653,0.000178,2]
[400009358,1767017446675,-792.54,0.000178,2]
[400009361,1767017446716,-346.38830132,0.000178,2]
[400009363,1767017446728,-20026.32357044,0.000178,2]
[400009366,1767017446744,-1611.70767998,0.000178,2]
[400009434,1767017453662,150.0,7.661e-05,2]
[400009435,1767017487917,200.0,0.00028767,120]
[400009436,1767017489484,200.0,0.00028767,120]
[400009437,1767017491065,200.0,0.00028767,120]
[400009439,1767017591439,224.05096,0.00028767,120]
[400009440,1767017616366,489.0,0.00028767,120]
[400009442,1767017648750,150.0,6.514e-05,2]
[400009443,1767017649156,150.0,6.824e-05,2]
[400009444,1767017710576,156.35104134,0.00025646,120]
[400009445,1767017714498,150.0,6.459e-05,2]
[400009446,1767017715080,150.0,6.766e-05,2]
[400009447,1767017781157,150.0,6.33e-05,2]
[400009451,1767018154100,-5033.0,0.00024,30]
[400009452,1767018154144,-200.0,0.00024142,30]
[400009453,1767018154188,-200.0,0.00024142,30]
[400009454,1767018154234,-200.0,0.00024142,30]
[400009455,1767018154479,-241.11741768,0.00024743,32]
[400009456,1767018154522,-209.53410315,0.00024743,32]
[400009457,1767018154564,-179.38622416,0.00024743,32]
[400009458,1767018154606,-290.36874765,0.00024743,32]
[400009459,1767018154647,-290.36874765,0.00024888,40]
[400009460,1767018154689,-156.35104135,0.0002495,32]
[400009461,1767018154730,-154.21565219,0.00025,30]
[400009462,1767018154774,-241.11741768,0.00025034,48]
[400009463,1767018154818,-209.53410315,0.00025034,48]
[400009464,1767018154862,-179.38622416,0.00025034,48]
[400009465,1767018154906,-290.36874765,0.00025034,48]
[400009466,1767018154950,-186.69489275,0.00025179,56]
[400009467,1767018154994,-290.36874765,0.00025179,56]
[400009468,1767018155038,-156.35104135,0.00025243,48]
[400009469,1767018155080,-241.11741768,0.00025324,63]
[400009470,1767018155123,-179.38622416,0.00025324,63]
[400009471,1767018155167,-209.53410315,0.00025324,63]
[400009472,1767018155213,-290.36874765,0.00025324,63]
[400009473,1767018155258,-243.68363741,0.0002539,56]
[400009474,1767018155301,-209.53410313,0.00025434,110]
[400009475,1767018155344,-290.36874765,0.0002547,71]
[400009476,1767018155402,-156.35104135,0.00025536,63]
[400009477,1767018155446,-241.11741768,0.00025615,79]
[400009478,1767018155491,-209.53410315,0.00025615,79]
[400009479,1767018155538,-179.38622416,0.00025615,79]
[400009480,1767018155581,-290.36874765,0.00025615,79]
[400009481,1767018155623,-243.6836374,0.00025646,110]
[400009482,1767018155667,-290.36874765,0.00025761,86]
[400009483,1767018155710,-156.35104135,0.0002583,79]
[400009484,1767018155752,-241.11741768,0.00025906,94]
[400009485,1767018155796,-209.53410315,0.00025906,94]
[400009486,1767018155840,-179.38622416,0.00025906,94]
[400009487,1767018155885,-290.36874765,0.00025906,94]
[400009488,1767018155930,-290.36874765,0.00026051,102]
[400009489,1767018155979,-156.35104135,0.00026123,94]
[400009490,1767018156024,-186.69489275,0.00026196,110]
[400009491,1767018156067,-174.34699386,0.00026196,30]
[400009492,1767018156110,-241.11741768,0.00026196,110]
[400009493,1767018156152,-306.67725852,0.00026196,30]
[400009494,1767018156197,-218.53328265,0.00026197,110]
[400009495,1767018156244,-179.38622416,0.00026197,110]
[400009496,1767018156290,-290.36874765,0.00026197,110]
[400009497,1767018156333,-189.90225755,0.00026384,30]
[400009498,1767018156377,-1000.0,0.00026581,30]
[400009499,1767018156420,-244.0,0.00026581,30]
[400009500,1767018156463,-189.90225755,0.0002674,30]
[400009501,1767018156509,-384.30872184,0.00027904,30]
[400009502,1767018156552,-150.0,0.00028493,60]
[400009503,1767018156593,-213.80677365,0.00028564,30]
[400009504,1767018156632,-150.0,0.0002863,60]
[400009505,1767018156673,-102801.71822969,0.0002876,30]
[400009506,1767018156715,-199.19952446,0.00028767,60]
[400009507,1767018156756,-319.58689,0.000288,120]
[400009508,1767018156797,-187.78338598,0.000288,120]
[400009509,1767018156841,-389.90127,0.00029,120]
[400009510,1767018156883,-175.0,0.00029014,32]
[400009511,1767018156926,-200.0,0.000292,120]
[400009512,1767018156970,-1000.0,0.00029239,30]
[400009513,1767018157013,-492.0,0.00029239,30]
[400009514,1767018157054,-308.15417605,0.000295,120]
[400009515,1767018157094,-228.0,0.000296,120]
[400009516,1767018157134,-319.58689,0.000297,120]
[400009517,1767018157176,-1085.2885027,0.000298,120]
[400009518,1767018157217,-3712.92,0.0002988,120]
[400009519,1767018157260,-647.68919353,0.0003,30]
[400009520,1767018157302,-1500.0,0.0003,45]
[400009521,1767018157341,-509.58368153,0.0003,30]
[400009522,1767018157382,-343.28293793,0.0003,120]
[400009523,1767018157423,-385.66223314,0.0003,120]
[400009524,1767018157465,-210.94730344,0.0003,120]
[400009525,1767018157507,-680.91408908,0.0003,120]
[400009526,1767018157549,-200.0,0.0003,120]
[400009527,1767018157590,-300.0,0.0003,120]
[400009528,1767018157631,-1000.0,0.0003,120]
[400009529,1767018157673,-200.0,0.0003,60]
[400009530,1767018157716,-154.21565219,0.0003,60]
[400009531,1767018157761,-1041.66666667,0.0003,30]
[400009532,1767018157806,-1014.82,0.0003,30]
[400009533,1767018157849,-1014.82,0.0003006,30]
[400009534,1767018157893,-337.74230922,0.00030134,120]
[400009535,1767018157935,-1000.0,0.00030137,120]
[400009536,1767018157978,-200.0,0.00030178,120]
[400009537,1767018158022,-200.0,0.00030178,120]
[400009538,1767018158065,-200.0,0.00030178,120]
[400009539,1767018158107,-200.0,0.000303,120]
[400009540,1767018158150,-319.58689,0.000306,120]
[400009541,1767018158194,-2000.0,0.00030685,120]
[400009542,1767018158240,-1041.66666667,0.000309,30]
[400009543,1767018158285,-1586.78,0.00030958,30]
[400009544,1767018158329,-995.96901571,0.00031,120]
[400009545,1767018158373,-180.65011172,0.00031,120]
[400009546,1767018158418,-173.4775126,0.00031,120]
[400009547,1767018158463,-182.93922414,0.00031,120]
[400009548,1767018158650,-850.2796297,0.00031,120]
[400009549,1767018158695,-357.42208426,0.00031,120]
[400009550,1767018158739,-468.59826343,0.00031,120]
[400009551,1767018158780,-212.69067566,0.00031,120]
[400009552,1767018158823,-747.01145045,0.00031,120]
[400009553,1767018158867,-868.63781793,0.00031,120]
[400009554,1767018158909,-160.81497399,0.00031,120]
[400009555,1767018158952,-541.00842197,0.00031,120]
[400009556,1767018158994,-469.38876097,0.00031,120]
[400009557,1767018159038,-5556.32037349,0.00031,120]
[400009558,1767018159079,-930.21351492,0.00031,120]
[400009559,1767018159121,-2000.0,0.00031233,120]
[400009560,1767018159163,-393.0,0.0003131,120]
[400009561,1767018159204,-250.0,0.000314,120]
[400009562,1767018159246,-200.0,0.000314,120]
[400009563,1767018159289,-391.33867,0.000315,120]
[400009564,1767018159336,-719.07052,0.000315,120]
[400009565,1767018159379,-319.58689,0.000315,120]
[400009566,1767018159424,-1586.78,0.00031506,31]
[400009567,1767018159466,-2000.0,0.00031781,120]
[400009568,1767018159510,-249.55285,0.000318,120]
[400009569,1767018159551,-389.90127,0.000318,120]
[400009570,1767018159593,-1041.66666667,0.000318,30]
[400009571,1767018159634,-10056.5,0.00031888,30]
[400009572,1767018159676,-995.96901571,0.000319,120]
[400009573,1767018159715,-180.65011172,0.000319,120]
[400009574,1767018159758,-173.4775126,0.000319,120]
[400009575,1767018159800,-182.93922414,0.000319,120]
[400009576,1767018159840,-850.2796297,0.000319,120]
[400009577,1767018159881,-357.42208426,0.000319,120]
[400009578,1767018159920,-468.59826343,0.000319,120]
[400009579,1767018159974,-212.69067566,0.000319,120]
[400009580,1767018160030,-747.01145045,0.000319,120]
[400009581,1767018160084,-868.63781793,0.000319,120]
[400009582,1767018160127,-541.00842197,0.000319,120]
[400009583,1767018160171,-469.38876097,0.000319,120]
[400009584,1767018160215,-5556.32037349,0.000319,120]
[400009585,1767018160258,-930.21351492,0.000319,120]
[400009586,1767018160300,-250.0,0.00032,120]
[400009587,1767018160340,-191.3833606,0.00032,120]
[400009588,1767018160395,-193.5068494,0.00032,120]
[400009589,1767018160447,-203.30289,0.00032,120]
[400009590,1767018160491,-229.15862486,0.00032,120]
[400009591,1767018160533,-341.6125236,0.00032,120]
[400009592,1767018160576,-1000.0,0.00032,120]
[400009593,1767018160618,-200.0031147,0.00032,120]
[400009594,1767018160659,-1455.28954561,0.00032,120]
[400009595,1767018160699,-1586.78,0.00032054,32]
[400009596,1767018160740,-1000.0,0.00032163,30]
[400009597,1767018160782,-791.0,0.00032163,30]
[400009598,1767018160821,-588.26905,0.000322,120]
[400009599,1767018160860,-171.0,0.00032301,52]
[400009600,1767018160902,-500.0,0.00032328,30]
[400009601,1767018160943,-500.0,0.00032328,30]
[400009602,1767018160983,-500.0,0.00032328,30]
[400009603,1767018161023,-500.0,0.00032328,30]
[400009604,1767018161065,-500.0,0.00032328,30]
[400009605,1767018161105,-500.0,0.00032328,30]
[400009606,1767018161146,-500.0,0.00032328,30]
[400009607,1767018161188,-500.0,0.00032328,30]
[400009608,1767018161238,-500.0,0.00032328,30]
[400009609,1767018161281,-500.0,0.00032328,30]
[400009610,1767018161329,-500.0,0.00032328,30]
[400009611,1767018161373,-500.0,0.00032328,30]
[400009612,1767018161416,-500.0,0.00032328,30]
[400009613,1767018161459,-494.49773286,0.00032328,30]
[400009614,1767018161505,-2000.0,0.00032329,120]
[400009615,1767018161547,-391.33867,0.000324,120]
[400009616,1767018161588,-719.07052,0.000324,120]
[400009617,1767018161628,-319.58689,0.000324,120]
[400009618,1767018161668,-363.40285,0.000325,120]
[400009619,1767018161709,-1586.78,0.00032602,33]
[400009620,1767018161750,-250.0,0.000328,120]
[400009621,1767018161792,-1065191.82102327,0.00032875,60]
[400009622,1767018161836,-568.0183581,0.00032875,120]
[400009623,1767018161881,-1000.0,0.00032876,120]
[400009624,1767018161928,-2000.0,0.00032877,120]
[400009625,1767018161969,-518.0,0.00032877,60]
[400009626,1767018162011,-5780.92473578,0.00032878,120]
[400009627,1767018162051,-182.95447041,0.00032878,120]
[400009628,1767018162096,-173.20857125,0.00032878,120]
[400009629,1767018162136,-179.49187198,0.00032878,120]
[400009630,1767018162175,-364.0,0.00032883,30]
[400009631,1767018162218,-1030.28,0.000329,120]
[400009632,1767018162261,-995.96901571,0.000329,120]
[400009633,1767018162304,-180.65011172,0.000329,120]
[400009634,1767018162351,-850.2796297,0.000329,120]
[400009635,1767018162395,-357.42208426,0.000329,120]
[400009636,1767018162440,-468.59826343,0.000329,120]
[400009637,1767018162483,-747.01145045,0.000329,120]
[400009638,1767018162527,-868.63781793,0.000329,120]
[400009639,1767018162569,-541.00842197,0.000329,120]
[400009640,1767018162613,-469.38876097,0.000329,120]
[400009641,1767018162655,-5556.32037349,0.000329,120]
[400009642,1767018162696,-930.21351492,0.000329,120]
[400009643,1767018162877,-150.0,0.00033,120]
[400009644,1767018162918,-1000.0,0.00033,120]
[400009645,1767018162966,-249.55285,0.00033,120]
[400009646,1767018163019,-5734.83568832,0.00033,120]
[400009647,1767018163069,-2206.13,0.00033,30]
[400009648,1767018163108,-1586.78,0.0003315,34]
[400009649,1767018163151,-2000.0,0.00033151,120]
[400009650,1767018163194,-1000.0,0.00033219,45]
[400009651,1767018163235,-2453498.4214,0.0003322,30]
[400009652,1767018163277,-607.95721918,0.00033272,120]
[400009653,1767018163320,-391.33867,0.000333,120]
[400009654,1767018163363,-719.07052,0.000333,120]
[400009655,1767018163404,-319.58689,0.000333,120]
[400009656,1767018163447,-364.0,0.00033376,30]
[400009657,1767018163489,-230230.71545975,0.00033389,30]
[400009658,1767018177945,-474.63054452,0.00032904,120]
[400009659,1767018177987,-453.3322393,0.00033222,32]
[400009660,1767018178028,-9992.0,0.00033389,30]
[400009661,1767018178069,-270.0,0.00033389,30]
[400009662,1767018178109,-3988810.03721618,0.00033389,30]
[400009663,1767018181574,-178.81923846,0.00031,120]
[400009664,1767018181613,-178.81923846,0.000319,120]
[400009665,1767018181658,-178.81923846,0.000329,120]
[400009666,1767018181701,-9160.0,0.00033389,30]
[400009667,1767018181741,-808.5,0.00033389,30]
[400009668,1767018181780,-3989495.04228462,0.00033389,30]
[400009669,1767018184517,-9194.0,0.00033389,30]
[400009670,1767018184560,-3990806.0,0.00033389,30]
[400009671,1767018187907,-8428.0,0.00033389,30]
[400009672,1767018187951,-3991572.0,0.00033389,30]
[400009675,1767018198066,-1000.0,0.0002638,30]
[400009676,1767018198114,-1000.0,0.0002638,30]
[400009677,1767018198175,-1000.0,0.00029018,30]
[400009678,1767018198227,-557.0,0.00029018,30]
[400009679,1767018198283,-372.08540597,0.00031,120]
[400009680,1767018198329,-187.57535393,0.00031,120]
[400009681,1767018198374,-300.13107429,0.00031,120]
[400009682,1767018198421,-372.08540597,0.000319,120]
[400009683,1767018198468,-187.57535393,0.000319,120]
[400009684,1767018198513,-300.13107429,0.000319,120]
[400009685,1767018198568,-372.08540597,0.000329,120]
[400009686,1767018198614,-187.57535393,0.000329,120]
[400009687,1767018198658,-300.13107429,0.000329,120]
[400009688,1767018198703,-8460.0,0.00033389,30]
[400009689,1767018198748,-3985403.62449743,0.00033389,30]
[400009690,1767018238297,-150.0,0.0002638,30]
[400009691,1767018238344,-347.45512718,0.00031,120]
[400009692,1767018238372,-398.82339451,0.00031,120]
[400009693,1767018238400,-340.20288741,0.00031,120]
[400009694,1767018238427,-347.45512718,0.000319,120]
[400009695,1767018238454,-398.82339451,0.000319,120]
[400009696,1767018238480,-340.20288741,0.000319,120]
[400009697,1767018238513,-347.45512718,0.000329,120]
[400009698,1767018238544,-398.82339451,0.000329,120]
[400009699,1767018238570,-340.20288741,0.000329,120]
[400009700,1767018238598,-319.0,0.00033151,30]
[400009701,1767018238624,-91518.47039995,0.000332,117]
[400009702,1767018238650,-91518.47039991,0.000332,117]
[400009703,1767018238676,-91518.47039991,0.000332,117]
[400009704,1767018238704,-91518.47039991,0.000332,117]
[400009705,1767018238730,-91518.47039991,0.00033325,117]
[400009706,1767018238758,-8107.0,0.00033389,30]
[400009707,1767018238784,-4530572.20377311,0.00033389,30]
[400009708,1767018242529,-7770.0,0.00033389,30]
[400009709,1767018242556,-4992230.0,0.00033389,30]
[400009710,1767018245493,-7122.0,0.00033389,30]
[400009711,1767018245519,-318952.5117,0.00033389,30]
[400009712,1767018245547,-319.0,0.00033425,30]
[400009713,1767018245572,-2000.0,0.00033425,120]
[400009714,1767018245597,-2000.0,0.00033425,120]
[400009715,1767018245623,-1384273.1198,0.0003344,30]
[400009716,1767018245647,-588.26905,0.000335,120]
[400009717,1767018245675,-1113.60091,0.000336,120]
[400009718,1767018245699,-200.0,0.000336,120]
[400009719,1767018245723,-200.0,0.000336,120]
[400009720,1767018245747,-1586.78,0.00033698,35]
[400009721,1767018245772,-319.0,0.00033699,30]
[400009722,1767018245797,-2000.0,0.00033699,120]
[400009723,1767018245822,-178.81923846,0.000339,120]
[400009724,1767018245847,-372.08540597,0.000339,120]
[400009725,1767018245872,-187.57535393,0.000339,120]
[400009726,1767018245898,-300.13107429,0.000339,120]
[400009727,1767018245923,-347.45512718,0.000339,120]
[400009728,1767018245947,-398.82339451,0.000339,120]
[400009729,1767018245970,-340.20288741,0.000339,120]
[400009730,1767018245994,-319.0,0.00033973,30]
[400009731,1767018246019,-2000.0,0.00033973,120]
[400009732,1767018246045,-2000.0,0.00033973,120]
[400009733,1767018246069,-150.0,0.00034,120]
[400009734,1767018246095,-300.0,0.00034,120]
[400009735,1767018246119,-5000.0,0.00034,30]
[400009736,1767018246144,-5000.0,0.00034,30]
[400009737,1767018246170,-5000.0,0.00034,30]
[400009738,1767018246197,-249.55285,0.000342,120]
[400009739,1767018246221,-391.33868,0.000342,120]
[400009740,1767018246246,-719.07052,0.000342,120]
[400009741,1767018246272,-319.58696,0.000342,120]
[400009742,1767018246297,-295.36829383,0.000342,30]
[400009743,1767018246321,-1586.78,0.00034246,36]
[400009744,1767018246347,-2000.0,0.00034247,120]
[400009745,1767018246372,-532.8033,0.000344,120]
[400009746,1767018246397,-200.0,0.000344,120]
[400009747,1767018246421,-1153560.9332,0.0003444,30]
[400009748,1767018246619,-55680.36500407,0.000345,30]
[400009749,1767018246644,-500.0,0.00034521,30]
[400009750,1767018246670,-318.68,0.00034521,30]
[400009751,1767018246697,-159.34,0.00034521,30]
[400009752,1767018246723,-319.0,0.00034521,30]
[400009753,1767018246747,-2000.0,0.00034521,120]
[400009754,1767018246772,-2000.0,0.00034521,120]
[400009755,1767018246798,-389.90129,0.000346,120]
[400009756,1767018246824,-1586.78,0.00034794,37]
[400009757,1767018246849,-2000.0,0.00034795,120]
[400009758,1767018246874,-2307.83,0.000349,60]
[400009759,1767018246900,-372.08540597,0.000349,120]
[400009760,1767018246924,-187.57535393,0.000349,120]
[400009761,1767018246950,-300.13107429,0.000349,120]
[400009762,1767018246976,-347.45512718,0.000349,120]
[400009763,1767018247002,-398.82339451,0.000349,120]
[400009764,1767018247027,-340.20288741,0.000349,120]
[400009765,1767018247053,-2307.83,0.00035,60]
[400009766,1767018247076,-2713.19870517,0.00035,30]
[400009767,1767018247102,-150.0,0.00035,120]
[400009768,1767018247126,-6000.0,0.00035,60]
[400009769,1767018247152,-5000.0,0.00035,60]